[Event "26th OIBM 2023"]
[Site "Gmund am Tegernsee"]
[Date "2023.10.28"]
[Round "1.20"]
[White "Schachinger, Mario"]
[Black "Wenner, Tobias"]
[Result "1-0"]
[ECO "A36"]
[WhiteElo "2385"]
[BlackElo "2064"]
[Annotator "ChessBase"]
[PlyCount "63"]
[EventDate "2023.10.04"]
[EventType "swiss"]
[EventCountry "GER"]
[SourceTitle "playchess.com"]
[Source "ChessBase"]
[SourceQuality "1"]
[TimeControl "40/5400+30:1800+30"]

1. c4 {[%emt 0:00:26]} Nf6 {[%emt 0:00:14]} 2. Nc3 {[%emt 0:00:26]} g6 {[%emt 0:01:08]} 3. e4 {[%emt 0:00:38]} d6 {[%emt 0:00:09]} 4. g3 {[%emt 0:00:13]} Bg7 {[%emt 0:00:10]} 5. Bg2 {[%emt 0:00:06]} c5 {[%emt 0:01:44]} 6. Nge2 {[%emt 0:00:12]} Nc6 {[%emt 0:00:22]} 7. d3 {[%emt 0:01:07]} e5 {[%emt 0:09:31]} 8. O-O {[%emt 0:03:16]} O-O {[%emt 0:01:47]} 9. f4 {[%emt 0:01:24]} Nd4 {[%emt 0:08:21]} 10. h3 {[%emt 0:05:56]} Nxe2+ {[%emt 0:03:33]} 11. Nxe2 {[%emt 0:05:04]} exf4 {[%emt 0:02:08]} 12. Bxf4 {[%emt 0:03:09]} Nh5 {[%emt 0:02:51]} 13. Bc1 {[%emt 0:00:51]} Be5 {[%emt 0:03:15]} 14. g4 {[%emt 0:05:20]} Ng7 {[%emt 0:01:39]} 15. Rb1 {[%emt 0:03:23]} Rb8 {[%emt 0:01:24]} 16. Be3 {[%emt 0:03:03]} h5 {[%emt 0:08:47]} 17. g5 {[%emt 0:02:54]} Be6 {[%emt 0:01:28]} 18. b4 {[%emt 0:10:06]} Qd7 {[%emt 0:03:11]} 19. Rf3 {[%emt 0:00:11]} b6 {[%emt 0:02:13]} 20. Nf4 {[%emt 0:07:15]} Kh7 {[%emt 0:07:28]} 21. Nd5 {[%emt 0:03:02]} Bxd5 {[%emt 0:02:35]} 22. cxd5 {[%emt 0:01:37]} f5 {[%emt 0:02:58]} 23. gxf6 {[%emt 0:00:59]} Ne8 {[%emt 0:07:29]} 24. bxc5 {[%emt 0:01:09]} dxc5 {[%emt 0:00:14]} 25. d4 {[%emt 0:02:08]} cxd4 {[%emt 0:03:49]} 26. Bxd4 {[%emt 0:01:02]} Qd6 {[%emt 0:03:36]} 27. Rc1 {[%emt 0:05:28]} Rxf6 {[%emt 0:02:23]} 28. Rc6 {[%emt 0:02:12]} Qe7 {[%emt 0:00:26]} 29. Rfxf6 {[%emt 0:02:13]} Bxf6 {[%emt 0:01:38]} 30. Re6 {[%emt 0:01:45]} Bxd4+ {[%emt 0:04:14]} 31. Qxd4 {[%emt 0:00:07]} Qg5 {[%emt 0:00:17]} 32. Qe5 {[%emt 0:07:07]} 1-0

[Event "26th OIBM 2023"]
[Site "Gmund am Tegernsee"]
[Date "2023.10.28"]
[Round "1.21"]
[White "Semprun Martinez, Fernando"]
[Black "Meissner, Felix"]
[Result "0-1"]
[ECO "D72"]
[WhiteElo "2064"]
[BlackElo "2382"]
[Annotator "ChessBase"]
[PlyCount "124"]
[EventDate "2023.10.04"]
[EventType "swiss"]
[EventCountry "GER"]
[SourceTitle "playchess.com"]
[Source "ChessBase"]
[SourceQuality "1"]
[TimeControl "40/5400+30:1800+30"]

1. d4 {[%emt 0:00:01]} Nf6 {[%emt 0:00:15]} 2. c4 {[%emt 0:00:02]} g6 {[%emt 0:00:05]} 3. g3 {[%emt 0:00:36]} Bg7 {[%emt 0:00:52]} 4. Bg2 {[%emt 0:00:09]} d5 {[%emt 0:00:34]} 5. cxd5 {[%emt 0:00:56]} Nxd5 {[%emt 0:00:07]} 6. e4 {[%emt 0:00:47]} Nb6 {[%emt 0:00:21]} 7. Ne2 {[%emt 0:00:11]} e5 {[%emt 0:03:39]} 8. d5 {[%emt 0:00:44]} O-O {[%emt 0:00:33]} 9. O-O {[%emt 0:00:47]} c6 {[%emt 0:01:47]} 10. Nbc3 {[%emt 0:01:49]} cxd5 {[%emt 0:07:33]} 11. exd5 {[%emt 0:00:26]} f5 {[%emt 0:01:13]} 12. Be3 {[%emt 0:05:17]} Nc4 {[%emt 0:04:32]} 13. Bc5 {[%emt 0:03:04]} Nd6 {[%emt 0:01:13]} 14. Qb3 {[%emt 0:10:05]} Na6 {[%emt 0:02:07]} 15. Ba3 {[%emt 0:01:18]} Rf6 {[%emt 0:03:45]} 16. Rad1 {[%emt 0:03:41]} Bd7 {[%emt 0:11:20]} 17. f4 {[%emt 0:05:31]} e4 {[%emt 0:00:54]} 18. Nd4 {[%emt 0:01:08]} Qb6 {[%emt 0:02:35]} 19. Qxb6 {[%emt 0:04:25]} axb6 {[%emt 0:00:01]} 20. Bxd6 {[%emt 0:05:26]} Rxd6 {[%emt 0:00:02]} 21. Ndb5 {[%emt 0:05:55]} Bxb5 {[%emt 0:05:51]} 22. Nxb5 {[%emt 0:00:02]} Rd7 {[%emt 0:00:33]} 23. g4 {[%emt 0:01:49]} Nb4 {[%emt 0:02:31]} 24. gxf5 {[%emt 0:01:53]} gxf5 {[%emt 0:00:54]} 25. Bh3 {[%emt 0:01:43]} Rf8 {[%emt 0:01:26]} 26. d6 {[%emt 0:01:01]} Nd3 {[%emt 0:03:03]} 27. Rxd3 {[%emt 0:03:35]} exd3 {[%emt 0:00:09]} 28. Rd1 {[%emt 0:00:18]} Bh6 {[%emt 0:05:13]} 29. Rxd3 {[%emt 0:00:24]} Bxf4 {[%emt 0:00:27]} 30. Rd5 {[%emt 0:01:40]} Rg7+ {[%emt 0:06:06]} 31. Kf2 {[%emt 0:01:09]} Bxh2 {[%emt 0:01:13]} 32. d7 {[%emt 0:01:26]} Bg3+ {[%emt 0:00:43]} 33. Kf3 {[%emt 0:01:38]} Bh4 {[%emt 0:00:15]} 34. Bxf5 {[%emt 0:01:05]} Rxf5+ {[%emt 0:07:05]} 35. Rxf5 {[%emt 0:00:03]} Rxd7 {[%emt 0:00:09]} 36. Kg4 {[%emt 0:04:13]} Bd8 {[%emt 0:01:09]} 37. Nc3 {[%emt 0:02:13]} Rd4+ {[%emt 0:02:11]} 38. Kf3 {[%emt 0:00:29]} Kg7 {[%emt 0:01:32]} 39. Rb5 {[%emt 0:01:52]} Rd6 {[%emt 0:01:52]} 40. a4 {[%emt 0:02:16]} Kg6 {[%emt 0:02:32]} 41. Nd5 {[%emt 0:31:09]} h6 {[%emt 0:32:23]} 42. b4 {[%emt 0:01:03]} Kf7 {[%emt 0:03:37]} 43. a5 {[%emt 0:07:40]} Ke6 {[%emt 0:00:43]} 44. Ke4 {[%emt 0:14:03]} Kd7 {[%emt 0:04:50]} 45. axb6 {[%emt 0:04:29]} Re6+ {[%emt 0:03:31]} 46. Kd4 {[%emt 0:00:00]} h5 {[%emt 0:00:00]} 47. Ra5 {[%emt 0:00:00]} Rxb6 {[%emt 0:00:00]} 48. Ra2 {[%emt 0:00:00]} Rh6 {[%emt 0:00:00]} 49. Ra7 {[%emt 0:00:00]} Bb6+ {[%emt 0:00:00]} 50. Nxb6+ {[%emt 0:00:00]} Rxb6 {[%emt 0:00:00]} 51. Kc5 {[%emt 0:00:00]} Rc6+ {[%emt 0:00:00]} 52. Kb5 {[%emt 0:00:00]} Kc7 {[%emt 0:00:00]} 53. Ra3 {[%emt 0:00:00]} Rh6 {[%emt 0:00:00]} 54. Rh3 {[%emt 0:00:00]} h4 {[%emt 0:00:00]} 55. Rc3+ {[%emt 0:00:00]} Kb8 {[%emt 0:14:34]} 56. Rh3 Rh7 {[%emt 0:00:00]} 57. Kb6 {[%emt 0:00:00]} Rh5 {[%emt 0:00:00]} 58. b5 {[%emt 0:00:00]} Rh6+ {[%emt 0:00:00]} 59. Kc5 {[%emt 0:00:00]} b6+ {[%emt 0:02:00]} 60. Kd5 Kc7 {[%emt 0:00:00]} 61. Ke5 {[%emt 0:00:00]} Kd7 {[%emt 0:00:00]} 62. Kf5 {[%emt 0:00:00]} Kd6 {[%emt 0:00:00]} 0-1

[Event "26th OIBM 2023"]
[Site "Gmund am Tegernsee"]
[Date "2023.10.28"]
[Round "1.22"]
[White "Morawietz, Dieter"]
[Black "Pollmann, Sascha"]
[Result "1-0"]
[ECO "B38"]
[WhiteElo "2378"]
[BlackElo "2061"]
[Annotator "ChessBase"]
[PlyCount "79"]
[EventDate "2023.10.04"]
[EventType "swiss"]
[EventCountry "GER"]
[SourceTitle "playchess.com"]
[Source "ChessBase"]
[SourceQuality "1"]
[TimeControl "40/5400+30:1800+30"]

1. e4 {[%emt 0:00:06]} c5 {[%emt 0:00:14]} 2. Nf3 {[%emt 0:00:12]} g6 {[%emt 0:00:13]} 3. d4 {[%emt 0:02:34]} cxd4 {[%emt 0:00:10]} 4. Nxd4 {[%emt 0:00:17]} Bg7 {[%emt 0:00:08]} 5. c4 {[%emt 0:00:43]} Nc6 {[%emt 0:03:19]} 6. Be3 {[%emt 0:00:09]} Nf6 {[%emt 0:00:46]} 7. Nc3 {[%emt 0:00:09]} O-O {[%emt 0:00:17]} 8. Be2 {[%emt 0:00:11]} d6 {[%emt 0:00:34]} 9. O-O {[%emt 0:00:42]} Bd7 {[%emt 0:00:40]} 10. h3 {[%emt 0:03:54]} Nxd4 {[%emt 0:04:22]} 11. Bxd4 {[%emt 0:00:11]} Bc6 {[%emt 0:00:55]} 12. Qc2 {[%emt 0:00:28]} a5 {[%emt 0:01:50]} 13. Rad1 {[%emt 0:00:23]} Qc7 {[%emt 0:00:26]} 14. f4 {[%emt 0:14:49]} Nd7 {[%emt 0:05:56]} 15. Be3 {[%emt 0:16:54]} Nc5 {[%emt 0:03:26]} 16. Nd5 {[%emt 0:01:23]} Bxd5 {[%emt 0:01:24]} 17. Rxd5 {[%emt 0:05:58]} e6 {[%emt 0:08:41]} 18. Rd2 {[%emt 0:00:31]} Rfd8 {[%emt 0:01:20]} 19. Bf3 {[%emt 0:03:38]} Rac8 {[%emt 0:01:35]} 20. Qd1 {[%emt 0:03:44]} b6 {[%emt 0:07:03]} 21. g4 {[%emt 0:04:59]} Qe7 {[%emt 0:18:16]} 22. g5 {[%emt 0:03:59]} d5 {[%emt 0:08:40]} 23. cxd5 {[%emt 0:00:57]} exd5 {[%emt 0:00:15]} 24. e5 {[%emt 0:00:48]} Bxe5 {[%emt 0:04:34]} 25. fxe5 {[%emt 0:00:16]} Qxe5 {[%emt 0:00:23]} 26. Re2 {[%emt 0:06:16]} d4 {[%emt 0:03:08]} 27. Bd2 {[%emt 0:02:01]} Qg3+ {[%emt 0:02:02]} 28. Bg2 {[%emt 0:03:38]} Ne6 {[%emt 0:04:35]} 29. Rxe6 {[%emt 0:18:46]} fxe6 {[%emt 0:00:21]} 30. Bf4 {[%emt 0:00:05]} Qh4 {[%emt 0:00:42]} 31. Qb3 {[%emt 0:02:31]} Re8 {[%emt 0:03:21]} 32. Bd5 {[%emt 0:00:38]} Rc5 {[%emt 0:03:52]} 33. Bxe6+ {[%emt 0:00:06]} Kh8 {[%emt 0:04:46]} 34. Qxb6 {[%emt 0:00:09]} Rxg5+ {[%emt 0:00:52]} 35. Kh1 {[%emt 0:00:25]} Rf5 {[%emt 0:04:06]} 36. Bxf5 {[%emt 0:00:47]} gxf5 {[%emt 0:00:23]} 37. Qxd4+ {[%emt 0:00:16]} Kg8 {[%emt 0:01:13]} 38. Rg1+ {[%emt 0:00:57]} Kf7 {[%emt 0:00:41]} 39. Rg7+ {[%emt 0:00:09]} Ke6 {[%emt 0:00:43]} 40. Qe5# {[%emt 0:05:51]} 1-0

[Event "26th OIBM 2023"]
[Site "Gmund am Tegernsee"]
[Date "2023.10.28"]
[Round "1.23"]
[White "Mueller, Kai-Markus"]
[Black "Hess, Max"]
[Result "0-1"]
[ECO "A09"]
[WhiteElo "2179"]
[BlackElo "2378"]
[Annotator "ChessBase"]
[PlyCount "68"]
[EventDate "2023.10.04"]
[EventType "swiss"]
[EventCountry "GER"]
[SourceTitle "playchess.com"]
[Source "ChessBase"]
[SourceQuality "1"]
[TimeControl "40/5400+30:1800+30"]

1. Nf3 {[%emt 0:00:05]} d5 {[%emt 0:00:42]} 2. c4 {[%emt 0:00:52]} d4 {[%emt 0:00:45]} 3. b4 {[%emt 0:00:39]} g5 {[%emt 0:00:27]} 4. h3 {[%emt 0:02:38]} Bg7 {[%emt 0:07:47]} 5. Nxg5 {[%emt 0:01:54]} e5 {[%emt 0:11:43]} 6. d3 {[%emt 0:03:40]} Ne7 {[%emt 0:02:09]} 7. g3 {[%emt 1:24:12]} O-O {[%emt 0:06:04]} 8. Bg2 h6 {[%emt 0:03:13]} 9. Ne4 f5 {[%emt 1:02:10]} 10. Nc5 {[%emt 0:01:30]} e4 {[%emt 0:00:30]} 11. Bb2 {[%emt 0:00:30]} a5 {[%emt 0:00:00]} 12. dxe4 f4 {[%emt 0:01:00]} 13. gxf4 {[%emt 0:00:00]} Rxf4 {[%emt 0:00:00]} 14. e3 {[%emt 0:00:00]} Rxf2 {[%emt 0:00:00]} 15. Kxf2 {[%emt 0:00:00]} dxe3+ {[%emt 0:00:00]} 16. Kxe3 {[%emt 0:00:00]} Qxd1 {[%emt 0:00:00]} 17. Rxd1 {[%emt 0:00:00]} Bxb2 {[%emt 0:00:00]} 18. Nd2 {[%emt 0:00:00]} Bxa1 {[%emt 0:00:00]} 19. Rxa1 {[%emt 0:00:00]} axb4 {[%emt 0:00:00]} 20. e5 {[%emt 0:00:00]} Nbc6 {[%emt 0:00:00]} 21. e6 {[%emt 0:00:00]} Ra3+ {[%emt 0:00:00]} 22. Kf2 {[%emt 0:00:00]} b6 {[%emt 0:00:00]} 23. Nd7 {[%emt 0:00:00]} Bxd7 {[%emt 0:00:00]} 24. exd7 {[%emt 0:00:00]} Rd3 {[%emt 0:00:00]} 25. Ne4 {[%emt 0:05:58]} Kf7 {[%emt 0:00:00]} 26. Bf3 {[%emt 0:00:47]} Rxd7 {[%emt 0:01:36]} 27. Bh5+ {[%emt 0:00:17]} Ng6 {[%emt 0:01:59]} 28. Ke3 {[%emt 0:00:43]} Nce5 {[%emt 0:00:16]} 29. Rf1+ {[%emt 0:00:16]} Kg7 {[%emt 0:00:41]} 30. Nf6 {[%emt 0:00:39]} Nxc4+ {[%emt 0:01:24]} 31. Ke4 {[%emt 0:00:41]} Nd2+ {[%emt 0:00:12]} 32. Kf5 {[%emt 0:00:17]} Rf7 {[%emt 0:01:46]} 33. Ke6 {[%emt 0:00:46]} Re7+ {[%emt 0:00:14]} 34. Kf5 {[%emt 0:01:06]} Rd7 {[%emt 0:02:52]} 0-1

[Event "26th OIBM 2023"]
[Site "Gmund am Tegernsee"]
[Date "2023.10.28"]
[Round "1.24"]
[White "Womacka, Mathias"]
[Black "Manucharyan, Andriy"]
[Result "1/2-1/2"]
[ECO "C07"]
[WhiteElo "2371"]
[BlackElo "2058"]
[Annotator "ChessBase"]
[PlyCount "120"]
[EventDate "2023.10.04"]
[EventType "swiss"]
[EventCountry "GER"]
[SourceTitle "playchess.com"]
[Source "ChessBase"]
[SourceQuality "1"]
[TimeControl "40/5400+30:1800+30"]

1. e4 {[%emt 0:00:02]} e6 {[%emt 0:00:05]} 2. d4 {[%emt 0:00:08]} d5 {[%emt 0:00:05]} 3. Nd2 {[%emt 0:00:09]} c5 {[%emt 0:00:08]} 4. exd5 {[%emt 0:00:22]} Qxd5 {[%emt 0:00:07]} 5. Ngf3 {[%emt 0:00:22]} cxd4 {[%emt 0:00:10]} 6. Bc4 {[%emt 0:00:11]} Qd6 {[%emt 0:00:03]} 7. O-O {[%emt 0:00:19]} Nf6 {[%emt 0:00:04]} 8. Nb3 {[%emt 0:00:24]} Nc6 {[%emt 0:00:08]} 9. Nbxd4 {[%emt 0:00:15]} Nxd4 {[%emt 0:00:06]} 10. Nxd4 {[%emt 0:00:10]} a6 {[%emt 0:00:17]} 11. b3 {[%emt 0:10:38]} Qc7 {[%emt 0:02:49]} 12. Bb2 {[%emt 0:00:40]} Bd6 {[%emt 0:00:58]} 13. Nf3 {[%emt 0:01:21]} b5 {[%emt 0:04:27]} 14. Bd3 {[%emt 0:01:14]} Bb7 {[%emt 0:03:40]} 15. c4 {[%emt 0:03:22]} bxc4 {[%emt 0:07:03]} 16. Rc1 {[%emt 0:06:12]} Qa5 {[%emt 0:07:09]} 17. Rxc4 {[%emt 0:36:34]} Rd8 {[%emt 0:12:52]} 18. Bxf6 {[%emt 0:11:09]} gxf6 {[%emt 0:00:34]} 19. Qe2 {[%emt 0:00:42]} Qh5 {[%emt 0:15:28]} 20. Rh4 {[%emt 0:00:28]} Bxf3 {[%emt 0:07:37]} 21. Rxh5 {[%emt 0:00:35]} Bxe2 {[%emt 0:00:02]} 22. Bxe2 {[%emt 0:00:06]} Ke7 {[%emt 0:14:33]} 23. Ra5 {[%emt 0:04:31]} Ra8 {[%emt 0:01:07]} 24. Rc1 {[%emt 0:04:45]} Bb4 {[%emt 0:05:08]} 25. Rxa6 {[%emt 0:01:34]} Rxa6 {[%emt 0:00:27]} 26. Bxa6 {[%emt 0:00:05]} Ra8 {[%emt 0:00:40]} 27. Rc6 {[%emt 0:01:14]} f5 {[%emt 0:01:12]} 28. g3 {[%emt 0:03:09]} Rd8 {[%emt 0:02:39]} 29. Rc4 {[%emt 0:05:51]} Ba5 {[%emt 0:00:19]} 30. b4 {[%emt 0:00:14]} Bb6 {[%emt 0:00:27]} 31. Rc2 {[%emt 0:00:57]} Rd1+ {[%emt 0:00:15]} 32. Kg2 {[%emt 0:00:05]} Rb1 {[%emt 0:00:06]} 33. b5 {[%emt 0:01:38]} Bd4 {[%emt 0:01:26]} 34. h3 {[%emt 0:06:41]} Rb2 {[%emt 0:00:26]} 35. Rxb2 {[%emt 0:00:04]} Bxb2 {[%emt 0:00:05]} 36. b6 {[%emt 0:00:46]} Bd4 {[%emt 0:02:18]} 37. b7 {[%emt 0:00:06]} Ba7 {[%emt 0:01:32]} 38. Kf3 {[%emt 0:01:05]} e5 {[%emt 0:02:54]} 39. Bc4 {[%emt 0:00:54]} h6 {[%emt 0:06:54]} 40. g4 {[%emt 0:00:39]} fxg4+ {[%emt 0:02:36]} 41. hxg4 {[%emt 0:01:10]} f6 {[%emt 0:04:00]} 42. Ke4 {[%emt 0:08:08]} Kd6 {[%emt 0:00:42]} 43. f3 {[%emt 0:00:21]} Kc7 {[%emt 0:01:00]} 44. Bd5 {[%emt 0:00:17]} Bf2 {[%emt 0:00:55]} 45. Kf5 {[%emt 0:00:33]} Bh4 {[%emt 0:00:11]} 46. Ke6 {[%emt 0:00:21]} Bg5 {[%emt 0:00:47]} 47. Be4 {[%emt 0:00:15]} Bh4 {[%emt 0:01:06]} 48. a4 {[%emt 0:00:29]} Bg5 {[%emt 0:00:19]} 49. a5 {[%emt 0:00:26]} Bh4 {[%emt 0:00:28]} 50. a6 {[%emt 0:00:41]} Kb8 {[%emt 0:00:16]} 51. Kd7 {[%emt 0:02:48]} Bf2 {[%emt 0:00:11]} 52. Kd6 {[%emt 0:00:34]} Be3 {[%emt 0:00:24]} 53. Bd5 {[%emt 0:07:04]} Bf2 {[%emt 0:00:36]} 54. Ke7 {[%emt 0:00:30]} Bh4 {[%emt 0:00:14]} 55. Ke6 {[%emt 0:00:04]} Bg5 {[%emt 0:00:11]} 56. Be4 {[%emt 0:02:13]} Bh4 {[%emt 0:00:33]} 57. Kd6 {[%emt 0:00:14]} Bf2 {[%emt 0:00:05]} 58. a7+ {[%emt 0:00:15]} Bxa7 {[%emt 0:00:04]} 59. Ke6 {[%emt 0:00:03]} Be3 {[%emt 0:00:10]} 60. Kxf6 {[%emt 0:00:07]} Bf4 {[%emt 0:29:22]} 1/2-1/2

[Event "26th OIBM 2023"]
[Site "Gmund am Tegernsee"]
[Date "2023.10.28"]
[Round "1.25"]
[White "Stock, Christoph"]
[Black "Manish Anto Cristiano F"]
[Result "0-1"]
[ECO "D00"]
[WhiteElo "2058"]
[BlackElo "2368"]
[Annotator "ChessBase"]
[PlyCount "44"]
[EventDate "2023.10.04"]
[EventType "swiss"]
[EventCountry "GER"]
[SourceTitle "playchess.com"]
[Source "ChessBase"]
[SourceQuality "1"]
[TimeControl "40/5400+30:1800+30"]

1. d4 {[%emt 0:00:07]} d5 {[%emt 0:00:50]} 2. Nc3 {[%emt 0:00:17]} Nf6 {[%emt 0:00:37]} 3. Bf4 {[%emt 0:00:20]} e6 {[%emt 0:01:16]} 4. Nb5 {[%emt 0:01:15]} Na6 {[%emt 0:00:14]} 5. e3 {[%emt 0:02:01]} Be7 {[%emt 0:00:45]} 6. f3 {[%emt 0:04:30]} c6 {[%emt 0:06:32]} 7. Nc3 {[%emt 0:00:10]} Qb6 {[%emt 0:00:08]} 8. Rb1 {[%emt 0:03:24]} Nh5 {[%emt 0:04:48]} 9. Nge2 {[%emt 0:02:48]} Nxf4 {[%emt 0:00:36]} 10. Nxf4 {[%emt 0:00:04]} Bd7 {[%emt 0:01:41]} 11. Nd3 {[%emt 0:04:27]} O-O {[%emt 0:08:14]} 12. a3 {[%emt 0:22:23]} c5 {[%emt 0:02:31]} 13. Ne5 {[%emt 0:00:32]} Be8 {[%emt 0:01:08]} 14. Be2 {[%emt 0:06:35]} f6 {[%emt 0:02:16]} 15. Ng4 {[%emt 0:00:15]} f5 {[%emt 0:09:15]} 16. Ne5 {[%emt 0:02:28]} f4 {[%emt 0:00:16]} 17. dxc5 {[%emt 0:05:01]} Nxc5 {[%emt 0:04:18]} 18. e4 {[%emt 0:04:52]} Bh4+ {[%emt 0:01:33]} 19. Kf1 {[%emt 0:02:36]} Nxe4 {[%emt 0:00:39]} 20. Nxe4 {[%emt 0:01:54]} dxe4 {[%emt 0:00:08]} 21. g3 {[%emt 0:00:20]} fxg3 {[%emt 0:00:50]} 22. hxg3 {[%emt 0:00:01]} Bxg3 {[%emt 0:52:55]} 0-1

[Event "26th OIBM 2023"]
[Site "Gmund am Tegernsee"]
[Date "2023.10.28"]
[Round "1.26"]
[White "Besou, Hussain"]
[Black "Barthel, Ansgar"]
[Result "1-0"]
[ECO "B04"]
[WhiteElo "2351"]
[BlackElo "2056"]
[Annotator "ChessBase"]
[PlyCount "99"]
[EventDate "2023.10.04"]
[EventType "swiss"]
[EventCountry "GER"]
[SourceTitle "playchess.com"]
[Source "ChessBase"]
[SourceQuality "1"]
[TimeControl "40/5400+30:1800+30"]

1. e4 {[%emt 0:00:03]} Nf6 {[%emt 0:00:06]} 2. e5 {[%emt 0:00:07]} Nd5 {[%emt 0:00:03]} 3. d4 {[%emt 0:00:18]} d6 {[%emt 0:00:05]} 4. Nf3 {[%emt 0:00:06]} dxe5 {[%emt 0:00:09]} 5. Nxe5 {[%emt 0:00:08]} c6 {[%emt 0:00:05]} 6. Bc4 {[%emt 0:00:16]} Nd7 {[%emt 0:02:11]} 7. Nf3 {[%emt 0:01:04]} N7f6 {[%emt 0:01:19]} 8. O-O {[%emt 0:00:22]} Bg4 {[%emt 0:00:26]} 9. Be2 {[%emt 0:07:40]} e6 {[%emt 0:01:18]} 10. Re1 {[%emt 0:02:38]} Be7 {[%emt 0:01:29]} 11. Ne5 {[%emt 0:01:33]} Bxe2 {[%emt 0:00:32]} 12. Qxe2 {[%emt 0:00:05]} O-O {[%emt 0:00:22]} 13. c4 {[%emt 0:00:53]} Nb6 {[%emt 0:00:24]} 14. Rd1 {[%emt 0:00:10]} Qc8 {[%emt 0:06:51]} 15. Nc3 {[%emt 0:09:06]} c5 {[%emt 0:15:49]} 16. Be3 {[%emt 0:03:58]} cxd4 {[%emt 0:01:22]} 17. Bxd4 {[%emt 0:01:22]} Bc5 {[%emt 0:02:08]} 18. Qe3 {[%emt 0:01:21]} Bxd4 {[%emt 0:04:22]} 19. Rxd4 {[%emt 0:01:40]} Qc5 {[%emt 0:19:49]} 20. Rad1 {[%emt 0:01:24]} Rac8 {[%emt 0:01:05]} 21. b3 {[%emt 0:14:33]} a6 {[%emt 0:05:54]} 22. Ne2 {[%emt 0:07:28]} Qc7 {[%emt 0:06:22]} 23. h4 {[%emt 0:05:40]} Rfd8 {[%emt 0:02:46]} 24. Nf4 {[%emt 0:01:50]} Rxd4 {[%emt 0:09:22]} 25. Qxd4 {[%emt 0:00:40]} Kf8 {[%emt 0:01:58]} 26. a4 {[%emt 0:12:01]} Ke7 {[%emt 0:02:03]} 27. Re1 {[%emt 0:01:09]} Qc5 {[%emt 0:03:42]} 28. Qc3 {[%emt 0:02:01]} Nbd7 {[%emt 0:04:04]} 29. Nxd7 {[%emt 0:02:45]} Kxd7 {[%emt 0:00:13]} 30. Qg3 {[%emt 0:01:18]} g6 {[%emt 0:01:43]} 31. Nd3 {[%emt 0:02:25]} Qd4 {[%emt 0:01:29]} 32. Qf3 {[%emt 0:07:40]} Rc7 {[%emt 0:01:54]} 33. Ne5+ {[%emt 0:00:41]} Ke7 {[%emt 0:00:05]} 34. g4 {[%emt 0:00:41]} Rc5 {[%emt 0:05:12]} 35. Qxb7+ {[%emt 0:02:16]} Nd7 {[%emt 0:00:02]} 36. Qxd7+ {[%emt 0:00:51]} Qxd7 {[%emt 0:00:05]} 37. Nxd7 {[%emt 0:00:07]} Kxd7 {[%emt 0:00:02]} 38. Kg2 {[%emt 0:00:15]} h5 {[%emt 0:00:09]} 39. g5 {[%emt 0:00:16]} Rf5 {[%emt 0:00:46]} 40. Re4 {[%emt 0:01:18]} Ke7 {[%emt 0:01:42]} 41. f4 {[%emt 0:30:28]} Rc5 {[%emt 0:30:10]} 42. b4 {[%emt 0:00:39]} Rc7 {[%emt 0:00:13]} 43. Rd4 {[%emt 0:00:05]} f6 {[%emt 0:00:00]} 44. gxf6+ {[%emt 0:00:00]} Kxf6 {[%emt 0:00:00]} 45. Kf3 {[%emt 0:00:00]} Kf5 {[%emt 0:00:00]} 46. b5 {[%emt 0:00:00]} axb5 {[%emt 0:00:00]} 47. axb5 {[%emt 0:00:00]} Ra7 {[%emt 0:00:00]} 48. Re4 {[%emt 0:00:00]} Ra4 {[%emt 0:00:00]} 49. Re5+ {[%emt 0:00:00]} Kf6 {[%emt 0:00:00]} 50. Rc5 {[%emt 0:00:00]} 1-0

[Event "26th OIBM 2023"]
[Site "Gmund am Tegernsee"]
[Date "2023.10.28"]
[Round "1.27"]
[White "Stanescu, Christian"]
[Black "Weber, Ulrich"]
[Result "0-1"]
[ECO "E92"]
[WhiteElo "2056"]
[BlackElo "2349"]
[Annotator "ChessBase"]
[PlyCount "94"]
[EventDate "2023.10.04"]
[EventType "swiss"]
[EventCountry "GER"]
[SourceTitle "playchess.com"]
[Source "ChessBase"]
[SourceQuality "1"]
[TimeControl "40/5400+30:1800+30"]

1. Nf3 {[%emt 0:00:03]} Nf6 {[%emt 0:00:02]} 2. c4 {[%emt 0:00:08]} g6 {[%emt 0:00:11]} 3. Nc3 {[%emt 0:00:09]} Bg7 {[%emt 0:00:09]} 4. e4 {[%emt 0:00:12]} d6 {[%emt 0:00:15]} 5. d4 {[%emt 0:00:06]} O-O {[%emt 0:00:06]} 6. Be2 {[%emt 0:00:22]} e5 {[%emt 0:00:30]} 7. d5 {[%emt 0:00:23]} a5 {[%emt 0:00:09]} 8. Be3 {[%emt 0:01:30]} Ng4 {[%emt 0:00:44]} 9. Bg5 {[%emt 0:00:15]} f6 {[%emt 0:00:03]} 10. Bh4 {[%emt 0:00:08]} Na6 {[%emt 0:02:05]} 11. Nd2 {[%emt 0:00:47]} h5 {[%emt 0:01:10]} 12. h3 {[%emt 0:15:33]} Nh6 {[%emt 0:04:23]} 13. g4 {[%emt 0:00:40]} hxg4 {[%emt 0:12:47]} 14. hxg4 {[%emt 0:00:54]} Bd7 {[%emt 0:02:57]} 15. f3 {[%emt 0:10:42]} Nf7 {[%emt 0:01:50]} 16. Bd3 {[%emt 0:04:01]} Bh6 {[%emt 0:02:43]} 17. Qe2 {[%emt 0:01:36]} Kg7 {[%emt 0:07:25]} 18. O-O-O {[%emt 0:04:42]} Rh8 {[%emt 0:01:40]} 19. Kb1 {[%emt 0:00:36]} Rh7 {[%emt 0:11:49]} 20. Rdg1 {[%emt 0:09:51]} Qh8 {[%emt 0:13:16]} 21. Be1 {[%emt 0:13:15]} Bf4 {[%emt 0:05:38]} 22. Qg2 {[%emt 0:02:53]} Bh2 {[%emt 0:09:08]} 23. Rf1 {[%emt 0:00:58]} Rh6 {[%emt 0:01:07]} 24. Ne2 {[%emt 0:09:58]} Qh7 {[%emt 0:00:52]} 25. Bf2 {[%emt 0:16:42]} Rh8 {[%emt 0:03:48]} 26. a3 {[%emt 0:03:05]} Kf8 {[%emt 0:07:48]} 27. Rd1 {[%emt 0:01:24]} Ke7 {[%emt 0:02:11]} 28. Nf1 {[%emt 0:02:15]} Bf4 {[%emt 0:00:44]} 29. Nfg3 {[%emt 0:00:31]} Nc5 {[%emt 0:04:48]} 30. Bc2 {[%emt 0:00:05]} Rh2 {[%emt 0:00:45]} 31. Qg1 {[%emt 0:01:07]} b6 {[%emt 0:01:41]} 32. Rxh2 {[%emt 0:00:46]} Qxh2 {[%emt 0:00:01]} 33. Qxh2 {[%emt 0:00:20]} Rxh2 {[%emt 0:00:02]} 34. Rf1 {[%emt 0:00:12]} Ng5 {[%emt 0:01:09]} 35. Be1 {[%emt 0:00:45]} a4 {[%emt 0:01:41]} 36. Bc3 {[%emt 0:00:58]} b5 {[%emt 0:01:14]} 37. Bd1 {[%emt 0:00:27]} bxc4 {[%emt 0:00:38]} 38. Nxf4 {[%emt 0:00:03]} exf4 {[%emt 0:00:06]} 39. Ne2 {[%emt 0:00:08]} Nd3 {[%emt 0:00:10]} 40. Bd2 {[%emt 0:01:01]} Nxf3 {[%emt 0:01:57]} 41. Rxf3 {[%emt 0:09:55]} Bxg4 {[%emt 0:00:38]} 42. Bxf4 {[%emt 0:07:37]} Rh1 {[%emt 0:07:11]} 43. Re3 {[%emt 0:04:03]} Rxd1+ {[%emt 0:13:17]} 44. Kc2 {[%emt 0:01:14]} Bxe2 {[%emt 0:06:13]} 45. Rxe2 {[%emt 0:00:23]} Nxf4 {[%emt 0:01:06]} 46. Kxd1 {[%emt 0:00:23]} Nxe2 {[%emt 0:00:12]} 47. Kxe2 {[%emt 0:00:04]} g5 {[%emt 0:00:29]} 0-1